bitfinex-derivatives/quotes_BTCF0:USTF0_20251130
["timestamp","ask_amount","ask_price","bid_price","bid_amount"]
[1764492131501,5e-08,91126.0,91125.0,0.0543022]
[1764492131700,0.05738,91152.0,91151.0,0.0542991]
[1764492131900,0.02155,91152.0,91151.0,0.0542991]
[1764492132207,0.05738,91158.0,91157.0,0.0542984]
[1764492133505,0.06338,91158.0,91157.0,0.0542984]
[1764492133708,0.006,91158.0,91157.0,0.0542984]
[1764492134011,0.02234423,91166.0,91165.0,0.0547274]
[1764492134210,0.00027423,91166.0,91165.0,0.0547274]
[1764492134402,1e-08,91167.0,91166.0,0.04376]
[1764492134798,0.01289,91192.0,91181.0,0.04376]
[1764492135005,0.05673,91192.0,91191.0,0.0109643]
[1764492135305,0.04384,91187.0,91186.0,0.0109648]
[1764492136108,0.04384,91187.0,91186.0,0.02785013]
[1764492136600,0.04384,91187.0,91186.0,0.01688533]
[1764492136810,0.04384,91185.0,91184.0,0.0109651]
[1764492137704,0.04384,91185.0,91184.0,0.02822303]
[1764492138105,0.04484,91185.0,91184.0,0.02822303]
[1764492139414,0.04884,91185.0,91184.0,0.02822303]
[1764492140506,0.04884,91185.0,91184.0,0.07198303]
[1764492142918,0.005,91185.0,91184.0,0.07929303]
[1764492143114,0.00016456,91196.0,91195.0,0.0109638]
[1764492143311,0.00016456,91196.0,91195.0,0.0564638]
[1764492143714,0.01289,91197.0,91196.0,0.0455]
[1764492144315,0.05746411,91206.0,91205.0,0.023]
[1764492144509,0.05746411,91206.0,91205.0,0.0455]
[1764492144725,0.05746411,91206.0,91205.0,0.0564626]
[1764492145019,0.05746411,91206.0,91205.0,0.0109626]
[1764492145418,0.06046411,91206.0,91205.0,0.0109626]
[1764492147011,0.06046411,91206.0,91205.0,0.0564626]
[1764492147211,0.06146411,91206.0,91205.0,0.0564626]
[1764492148114,0.06146411,91206.0,91205.0,0.0109626]
[1764492148318,0.05764,91200.0,91199.0,0.0339633]
[1764492148925,0.05764,91200.0,91199.0,0.0564633]
[1764492149409,0.05764,91200.0,91199.0,0.0109633]
[1764492149622,0.0443,91200.0,91199.0,0.0564633]
[1764492150417,0.01305446,91215.0,91199.0,0.0564633]
[1764492150418,0.01305446,91215.0,91214.0,0.0109615]
[1764492150621,0.05735446,91215.0,91214.0,0.0564615]
[1764492151620,0.05735446,91215.0,91214.0,0.0654615]
[1764492152324,0.05735446,91215.0,91214.0,0.0644615]
[1764492152815,0.05735446,91215.0,91214.0,0.0624615]
[1764492153019,0.05735446,91215.0,91214.0,0.006]
[1764492153223,0.05735446,91215.0,91214.0,0.005]
[1764492153425,0.05735446,91215.0,91214.0,0.006]
[1764492154123,0.05735446,91215.0,91214.0,0.005]
[1764492154321,0.0443,91212.0,91211.0,0.0109618]
[1764492155518,0.0443,91212.0,91211.0,0.0139618]
[1764492155823,0.0443,91212.0,91211.0,0.0369618]
[1764492156024,0.0443,91212.0,91211.0,0.0339618]
[1764492156223,0.0443,91212.0,91211.0,0.0594618]
[1764492159821,0.0443,91212.0,91211.0,0.0139618]
[1764492160023,0.0443,91212.0,91211.0,0.003]
[1764492160623,0.0443,91197.0,91196.0,0.02316446]
[1764492160818,0.0443,91197.0,91196.0,0.05662816]
[1764492161020,0.0443,91197.0,91196.0,0.01112816]
[1764492162024,0.0443,91197.0,91196.0,0.01612816]
[1764492163723,0.02313,91197.0,91196.0,0.06238816]
[1764492164027,0.02313,91197.0,91196.0,0.05738816]
[1764492164239,0.02313,91197.0,91196.0,0.06138816]
[1764492164427,0.05812,91208.0,91207.0,0.04551]
[1764492164730,0.05812,91208.0,91207.0,0.0564724]
[1764492166725,0.05812,91208.0,91207.0,0.0574724]
[1764492171133,0.05812,91208.0,91207.0,0.0342124]
[1764492171333,0.0831728,91208.0,91207.0,0.0342124]
[1764492171535,0.0831728,91208.0,91207.0,0.0574724]
[1764492171732,0.05812,91208.0,91207.0,0.0574724]
[1764492172133,0.08318054,91208.0,91207.0,0.0574724]
[1764492173925,0.02506054,91208.0,91207.0,0.0574724]
[1764492174130,0.04494446,91215.0,91214.0,0.0564715]
[1764492174433,0.07000786,91215.0,91214.0,0.0564715]
[1764492175945,0.02522786,91215.0,91214.0,0.0564715]
[1764492176243,0.00016446,91215.0,91214.0,0.0564715]
[1764492176635,0.05812,91224.0,91223.0,0.0564704]
[1764492176940,0.06973586,91224.0,91223.0,0.0564704]
[1764492177138,0.04478,91224.0,91223.0,0.0564704]
[1764492178350,0.05767,91231.0,91230.0,0.0564696]
[1764492178646,0.08250398,91231.0,91230.0,0.0564696]
[1764492179529,0.08250398,91231.0,91230.0,0.0604696]
[1764492180242,0.08250398,91231.0,91230.0,0.0149596]
[1764492180641,0.02483398,91231.0,91230.0,0.0604696]
[1764492180848,0.01289,91259.0,91245.0,0.0453378]
[1764492181042,0.04505399,91246.0,91245.0,0.0453378]
[1764492181940,0.04505399,91246.0,91245.0,0.0473378]
[1764492182742,0.04505399,91246.0,91245.0,0.002]
[1764492183044,0.04478,91237.0,91236.0,0.01112336]
[1764492183235,0.04478,91237.0,91236.0,0.00016446]
[1764492184942,0.04478,91237.0,91236.0,0.00416446]
[1764492185143,0.04478,91237.0,91236.0,0.04254446]
[1764492186546,0.04478,91237.0,91236.0,0.03854446]
[1764492186744,0.04478,91237.0,91236.0,0.04154446]
[1764492187040,0.04478,91237.0,91236.0,0.02235446]
[1764492187634,0.04478,91237.0,91236.0,0.04154446]
[1764492188039,0.04478,91237.0,91236.0,0.43154446]
[1764492188241,0.01289,91240.0,91239.0,0.03838]
[1764492188242,0.05767,91240.0,91239.0,0.03838]
[1764492189345,0.05767,91240.0,91239.0,0.04038]
[1764492191351,0.04505399,91246.0,91245.0,0.0493378]
[1764492191552,0.04505399,91246.0,91245.0,0.3493378]
[1764492193154,0.04505399,91246.0,91245.0,0.0179578]
[1764492194248,0.04505399,91246.0,91245.0,0.0189578]
[1764492194448,0.04505399,91246.0,91245.0,0.0179578]
[1764492195042,0.04505399,91246.0,91245.0,0.0159578]
[1764492195448,0.0429,91237.0,91236.0,0.00016446]
[1764492195748,0.2729,91237.0,91236.0,0.00016446]
[1764492195948,0.2729,91237.0,91221.0,0.07803157]
[1764492195949,0.0429,91219.0,91218.0,0.010961]
[1764492196344,0.0429,91219.0,91218.0,0.032631]
[1764492197242,0.0429,91219.0,91218.0,0.010961]
[1764492198358,0.0429,91219.0,91218.0,0.016961]
[1764492198546,0.0429,91219.0,91218.0,0.039631]
[1764492198752,0.0429,91219.0,91218.0,0.061871]
[1764492199454,0.0034242,91219.0,91218.0,0.061871]
[1764492199666,0.0246842,91219.0,91218.0,0.061871]
[1764492201756,0.00016446,91228.0,91227.0,0.05401]
[1764492202259,0.04481446,91228.0,91227.0,0.1322017]
[1764492203355,0.02270446,91228.0,91227.0,0.05401]
[1764492203552,0.00016446,91228.0,91227.0,0.05401]
[1764492203753,0.04481446,91228.0,91227.0,0.05401]
[1764492203952,0.04481446,91228.0,91227.0,0.05601]
[1764492204152,0.04481446,91228.0,91227.0,0.05701]
[1764492204548,0.00016446,91228.0,91227.0,0.05701]
[1764492204951,0.04492399,91246.0,91245.0,0.0536578]
[1764492205763,0.04492399,91246.0,91245.0,0.0109578]
[1764492206864,0.04692399,91246.0,91245.0,0.0109578]
[1764492210166,0.04692399,91246.0,91245.0,0.0536578]
[1764492211269,0.04692399,91246.0,91245.0,0.13189486]
[1764492211568,0.04692399,91246.0,91245.0,0.0536578]
[1764492212763,0.04692399,91246.0,91245.0,0.0668578]
[1764492213769,0.00227399,91246.0,91245.0,0.0668578]
[1764492214068,0.05749,91264.0,91263.0,0.0109556]
[1764492214269,0.19749,91264.0,91263.0,0.0109556]
[1764492214676,0.40284,91264.0,91257.0,0.0109563]
[1764492214872,0.04465,91260.0,91259.0,0.010956]
[1764492215664,0.04465,91260.0,91259.0,0.032276]
[1764492216670,0.04965,91260.0,91259.0,0.032276]
[1764492217070,0.05065,91260.0,91259.0,0.032276]
[1764492219274,0.05065,91260.0,91259.0,0.053656]
[1764492226875,0.05065,91260.0,91254.0,0.00016436]
[1764492226876,0.04298,91255.0,91254.0,0.01112106]
[1764492227775,0.04298,91255.0,91254.0,0.03388106]
[1764492228668,0.04598,91255.0,91254.0,0.03388106]
[1764492228868,0.04598,91255.0,91254.0,0.05667106]
[1764492231469,0.04598,91255.0,91254.0,0.13493849]
[1764492232280,0.04598,91255.0,91254.0,0.05667106]
[1764492233779,0.04598,91255.0,91254.0,0.03388106]
[1764492234175,0.04598,91255.0,91254.0,0.01112106]
[1764492234885,0.43598,91255.0,91254.0,0.00016436]
[1764492235380,0.04298,91244.0,91243.0,0.03949333]
[1764492235580,0.39,91244.0,91243.0,0.010958]
[1764492235777,0.32298,91244.0,91243.0,0.010958]
[1764492236079,0.32298,91244.0,91243.0,0.033718]
[1764492236283,0.32298,91244.0,91243.0,0.010958]
[1764492236678,0.32398,91244.0,91243.0,0.010958]
[1764492236873,0.04298,91239.0,91238.0,0.0337186]
[1764492237079,0.05582,91236.0,91235.0,0.0337189]
[1764492237380,0.05582,91236.0,91234.0,0.00016436]
[1764492237381,0.04298,91235.0,91234.0,0.00016436]
[1764492237578,0.42298,91235.0,91234.0,0.00016436]
[1764492238787,0.42298,91235.0,91234.0,0.00216436]
[1764492248986,0.30298,91235.0,91234.0,0.00216436]
[1764492262516,0.30298,91235.0,91234.0,0.01312346]
[1764492262804,0.30298,91235.0,91234.0,0.00216436]
[1764492267705,0.30298,91235.0,91234.0,0.02393436]
[1764492268108,0.30298,91235.0,91234.0,0.00216436]
[1764492271005,0.04515,91222.0,91221.0,0.09828886]
[1764492271201,0.04515,91214.0,91213.0,0.0327315]
[1764492271408,0.46515,91214.0,91213.0,0.02177]
[1764492273000,0.46515,91214.0,91213.0,0.02277]
[1764492273506,0.46515,91214.0,91213.0,0.006]
[1764492274010,0.46515,91214.0,91213.0,0.02777]
[1764492274201,0.46515,91214.0,91213.0,0.04901]
[1764492288922,0.46515,91214.0,91213.0,0.006]
[1764492289424,0.46515,91214.0,91213.0,0.0507]
[1764492289818,0.04515,91214.0,91213.0,0.0507]
[1764492290425,0.04518,91214.0,91213.0,0.0507]
[1764492291726,0.04547436,91223.0,91222.0,0.0556606]
[1764492292717,0.04547436,91223.0,91222.0,0.4656606]
[1764492293229,0.04547436,91223.0,91222.0,0.4676606]
[1764492294320,0.04547436,91223.0,91222.0,0.4686606]
[1764492294722,0.04547436,91223.0,91222.0,0.1786606]
[1764492295228,0.04547436,91223.0,91222.0,0.4686606]
[1764492296033,0.02284436,91223.0,91222.0,0.4686606]
[1764492296424,0.02284436,91223.0,91222.0,0.0586606]
[1764492296624,0.04547436,91223.0,91222.0,0.0586606]
[1764492302736,0.44547436,91223.0,91222.0,0.003]
[1764492302930,0.44547436,91223.0,91214.0,0.09828886]
[1764492302931,0.04531,91215.0,91214.0,0.14298886]
[1764492303136,0.44531,91215.0,91214.0,0.0447]
[1764492303333,0.04531,91215.0,91214.0,0.0447]
[1764492304137,0.04531,91215.0,91214.0,0.0507]
[1764492304826,0.46531,91215.0,91214.0,0.0507]
[1764492307731,0.46531,91215.0,91214.0,0.006]
[1764492307933,0.04531,91207.0,91206.0,0.00027411]
[1764492308139,0.44531,91207.0,91206.0,0.00027411]
[1764492309228,0.45031,91207.0,91206.0,0.00027411]
[1764492309429,0.33031,91207.0,91206.0,0.05593661]
[1764492309731,0.33031,91207.0,91206.0,0.04497411]
[1764492309934,0.32531,91207.0,91206.0,0.04497411]
[1764492310133,0.33031,91207.0,91206.0,0.04497411]
[1764492310335,0.33031,91207.0,91206.0,0.02351411]
[1764492312248,0.33131,91207.0,91206.0,0.02351411]
[1764492312935,0.32531,91207.0,91206.0,0.02351411]
[1764492313231,0.33231,91207.0,91206.0,0.02351411]
[1764492313733,0.33231,91207.0,91206.0,0.00027411]
[1764492313938,0.33231,91207.0,91206.0,0.02271411]
[1764492314523,0.33231,91207.0,91206.0,0.00027411]
[1764492314727,0.33231,91207.0,91206.0,0.04378411]
[1764492315342,0.04369436,91223.0,91222.0,0.0544706]
[1764492315525,0.24369436,91223.0,91222.0,0.0544706]
[1764492315722,0.39369436,91223.0,91222.0,0.04351]
[1764492316636,0.20069436,91223.0,91222.0,0.04351]
[1764492317435,0.43069436,91223.0,91222.0,0.04351]
[1764492318326,0.42769436,91223.0,91222.0,0.04351]
[1764492319140,0.21769436,91223.0,91222.0,0.04351]
[1764492322839,0.00416436,91223.0,91222.0,0.04351]
[1764492323531,0.02574436,91223.0,91222.0,0.04351]
[1764492324644,0.02374436,91223.0,91222.0,0.04351]
[1764492325040,0.04658436,91223.0,91222.0,0.04351]
[1764492325237,0.04458436,91223.0,91222.0,0.04451]
[1764492325443,0.45458436,91223.0,91222.0,0.001]
[1764492326245,0.45458436,91223.0,91222.0,0.02101]
[1764492326439,0.45558436,91223.0,91222.0,0.02101]
[1764492327146,0.45558436,91223.0,91210.0,0.01396]
[1764492327147,0.04442,91214.0,91213.0,0.04206]
[1764492327359,0.45442,91214.0,91213.0,0.04206]
[1764492328443,0.17442,91214.0,91213.0,0.04206]
[1764492328650,0.40542,91214.0,91213.0,0.04206]
[1764492332338,0.40542,91214.0,91213.0,0.02101]
[1764492332542,0.04442,91212.0,91211.0,0.0109618]
[1764492332751,0.42442,91212.0,91211.0,0.0109618]
[1764492333250,0.42442,91212.0,91211.0,0.0319718]
[1764492335452,0.42442,91212.0,91207.0,0.0530223]
[1764492335453,0.04442,91208.0,91207.0,0.0530223]
[1764492335647,0.04442,91207.0,91204.0,0.01112706]
[1764492335849,0.43442,91207.0,91204.0,0.00016436]
[1764492337949,0.43442,91207.0,91206.0,0.00127411]
[1764492344659,0.0548,91205.0,91204.0,0.00016436]
[1764492344861,0.04267,91189.0,91188.0,0.0543946]
[1764492345051,0.44267,91189.0,91188.0,0.132806]
[1764492345657,0.04267,91189.0,91188.0,0.132806]
[1764492345872,0.06267,91189.0,91188.0,0.132806]
[1764492346568,0.06267,91189.0,91188.0,0.2327775]
[1764492346765,0.06267,91189.0,91188.0,0.137806]
[1764492347167,0.27267,91189.0,91188.0,0.0593946]
[1764492347660,0.27267,91189.0,91188.0,0.1603661]
[1764492347869,0.27267,91189.0,91188.0,0.0603946]
[1764492349360,0.27267,91189.0,91188.0,0.006]
[1764492350768,0.27567,91189.0,91188.0,0.001]
[1764492350958,0.27567,91189.0,91188.0,0.0109647]
[1764492351167,0.27567,91189.0,91188.0,0.0333047]
[1764492351360,0.27567,91189.0,91188.0,0.0543947]
[1764492352768,0.27267,91189.0,91188.0,0.0543947]
[1764492353073,0.27567,91189.0,91188.0,0.0543947]
[1764492353367,0.27267,91189.0,91188.0,0.0543947]
[1764492353569,0.02337,91189.0,91188.0,0.0543947]
[1764492353765,0.002,91189.0,91188.0,0.0543947]
[1764492354169,0.00016445,91198.0,91188.0,0.0543947]
[1764492354170,0.04283445,91198.0,91197.0,0.0543936]
[1764492354474,0.39283445,91198.0,91197.0,0.0543936]
[1764492356277,0.39483445,91198.0,91197.0,0.0543936]
[1764492356479,0.39483445,91198.0,91197.0,0.0109636]
[1764492356975,0.39583445,91198.0,91197.0,0.0109636]
[1764492359174,0.39583445,91198.0,91197.0,0.0333036]
[1764492359374,0.39283445,91198.0,91197.0,0.0333036]
[1764492359575,0.39583445,91198.0,91197.0,0.0333036]
[1764492359985,0.39283445,91198.0,91197.0,0.0333036]
[1764492360184,0.39583445,91198.0,91197.0,0.0333036]
[1764492360484,0.39583445,91198.0,91197.0,0.0543936]
[1764492361180,0.04583445,91198.0,91197.0,0.0543936]
[1764492362084,0.04283445,91198.0,91197.0,0.0543936]
[1764492362284,0.04583445,91198.0,91197.0,0.0553936]
[1764492362679,0.04283445,91198.0,91197.0,0.0553936]
[1764492362886,0.04383445,91198.0,91197.0,0.0553936]
[1764492363394,0.04283445,91198.0,91197.0,0.0563936]
[1764492363773,0.04283445,91198.0,91197.0,0.0543936]
[1764492365986,0.04383445,91198.0,91197.0,0.0543936]
[1764492366185,0.04383445,91198.0,91197.0,0.132805]
[1764492366888,0.02246445,91198.0,91197.0,0.132805]
[1764492367094,0.04267,91216.0,91215.0,0.0678314]
[1764492368586,0.04367,91216.0,91215.0,0.0678314]
[1764492369196,0.04467,91216.0,91215.0,0.0678314]
[1764492373899,0.40467,91216.0,91215.0,0.0543914]
[1764492374797,0.04448,91207.0,91206.0,0.03355695]
[1764492374997,0.24448,91207.0,91206.0,0.03355695]
[1764492375498,0.41448,91207.0,91206.0,0.05553695]
[1764492375901,0.41448,91207.0,91206.0,0.01112695]
[1764492376293,0.41448,91207.0,91206.0,0.01212695]
[1764492376687,0.41448,91207.0,91206.0,0.00116445]
[1764492376897,0.01213,91200.0,91194.0,0.0109639]
[1764492377092,0.04448,91185.0,91184.0,0.0333951]
[1764492377289,0.41448,91185.0,91184.0,0.0109651]
[1764492377495,0.41448,91185.0,91176.0,0.01334]
[1764492377693,0.04448,91177.0,91176.0,0.05775]
[1764492377888,0.04448,91177.0,91176.0,0.0687161]
[1764492378102,0.04448,91177.0,91176.0,0.18410052]
[1764492378687,0.04648,91177.0,91176.0,0.18410052]
[1764492379101,0.04648,91177.0,91176.0,0.08412902]
[1764492379395,0.04448,91177.0,91176.0,0.08412902]
[1764492380107,0.04448,91177.0,91176.0,0.18410052]
[1764492381392,0.04448,91177.0,91176.0,0.18510052]
[1764492381594,0.02201445,91186.0,91185.0,0.055785]
[1764492381804,0.04368445,91186.0,91185.0,0.055785]
[1764492382800,0.04368445,91186.0,91185.0,0.1557565]
[1764492384402,0.04568445,91186.0,91185.0,0.1557565]
[1764492384811,0.04368445,91186.0,91185.0,0.1557565]
[1764492385003,0.04468445,91186.0,91185.0,0.1557565]
[1764492385505,0.04568445,91186.0,91185.0,0.1557565]
[1764492387406,0.04468445,91186.0,91185.0,0.1557565]
[1764492389996,0.41368445,91186.0,91185.0,0.04482]
[1764492390307,0.04279,91182.0,91181.0,0.0554055]
[1764492390507,0.42279,91182.0,91181.0,0.0554055]
[1764492391311,0.42279,91182.0,91181.0,0.155377]
[1764492391902,0.42479,91182.0,91181.0,0.155377]
[1764492393001,0.42479,91182.0,91181.0,0.0554055]
[1764492393198,0.42279,91182.0,91181.0,0.0554055]
[1764492393409,0.42479,91182.0,91181.0,0.0109655]
[1764492393910,0.382,91182.0,91178.0,0.0109658]
[1764492394106,0.04279,91177.0,91176.0,0.01541292]
[1764492394303,0.41,91177.0,91172.0,0.0330165]
[1764492394505,0.04279,91173.0,91172.0,0.0554065]
[1764492394703,0.40279,91173.0,91172.0,0.0554065]
[1764492395308,0.52342388,91173.0,91166.0,0.00027423]
[1764492395513,0.04279,91168.0,91166.0,0.00027423]
[1764492395701,0.43279,91168.0,91166.0,0.00027423]
[1764492395897,0.43279,91168.0,91167.0,0.02221445]
[1764492396814,0.43279,91168.0,91167.0,0.04460445]
[1764492396815,0.04279,91168.0,91167.0,0.04460445]
[1764492397018,0.35279,91168.0,91167.0,0.05879354]
[1764492397203,0.35579,91168.0,91167.0,0.05879354]
[1764492398111,0.35279,91168.0,91167.0,0.05879354]
[1764492398311,0.35479,91168.0,91167.0,0.05879354]
[1764492399415,0.002,91168.0,91167.0,0.05879354]
[1764492399604,0.04295445,91186.0,91185.0,0.04444]
[1764492399803,0.47295445,91186.0,91185.0,0.04444]
[1764492400599,0.04279,91182.0,91181.0,0.02205]
[1764492400914,0.04279,91177.0,91176.0,0.010966]
[1764492401116,0.47279,91177.0,91176.0,0.010966]
[1764492401416,0.04279,91174.0,91173.0,0.0554064]
[1764492402114,0.04279,91174.0,91173.0,0.04444]
[1764492402510,0.47279,91174.0,91165.0,0.00010347]
[1764492402703,0.04279,91168.0,91167.0,0.03640354]
[1764492402908,0.40279,91168.0,91167.0,0.05879354]
[1764492403916,0.40379,91168.0,91167.0,0.05879354]
[1764492404317,0.40279,91168.0,91167.0,0.05879354]
[1764492404517,0.40379,91168.0,91167.0,0.05879354]
[1764492404920,0.18379,91168.0,91167.0,0.05879354]
[1764492405914,0.18279,91168.0,91167.0,0.05879354]
[1764492406218,0.04379,91168.0,91167.0,0.05879354]
[1764492408511,0.02212,91168.0,91167.0,0.05879354]
[1764492408823,0.001,91168.0,91167.0,0.05879354]
[1764492409512,0.04377,91168.0,91167.0,0.05879354]
[1764492414923,0.42377,91168.0,91167.0,0.01435354]
[1764492415620,0.42377,91168.0,91167.0,0.03756354]
[1764492417611,0.42377,91168.0,91167.0,0.05903354]
[1764492430438,0.04293445,91186.0,91185.0,0.02321]
[1764492430630,0.42896517,91186.0,91185.0,0.02321]
[1764492430839,0.04277,91180.0,91179.0,0.0556457]
[1764492431139,0.4758,91180.0,91179.0,0.0556457]
[1764492431523,0.4758,91180.0,91179.0,0.04468]
[1764492432740,0.21277,91180.0,91179.0,0.04468]
[1764492433038,0.44277,91180.0,91179.0,0.04468]
[1764492433237,0.44377,91180.0,91179.0,0.04468]
[1764492434238,0.45663,91180.0,91179.0,0.04468]
[1764492436648,0.45663,91180.0,91179.0,0.02321]
[1764492438238,0.45663,91180.0,91179.0,0.0451]
[1764492439450,0.05377,91180.0,91179.0,0.0451]
[1764492440445,0.42377,91180.0,91179.0,0.0451]
[1764492448146,0.05377,91180.0,91179.0,0.0451]
[1764492448349,0.41377,91180.0,91179.0,0.0451]
[1764492449851,0.42087,91180.0,91179.0,0.0451]
[1764492454553,0.42087,91180.0,91178.0,0.0109658]
[1764492454554,0.04598,91179.0,91178.0,0.0325758]
[1764492455156,0.04598,91179.0,91178.0,0.0109658]
[1764492456763,0.04598,91174.0,91173.0,0.0109664]
[1764492456961,0.04598,91170.0,91169.0,0.0552369]
[1764492475671,0.04402,91180.0,91179.0,0.04539]
[1764492475871,0.07402,91180.0,91179.0,0.04539]
[1764492476077,0.02285,91180.0,91179.0,0.04539]
[1764492476870,0.04402,91180.0,91179.0,0.04539]
[1764492481780,0.04402,91173.0,91172.0,0.0109665]
[1764492482083,0.04402,91168.0,91159.0,0.09828886]
[1764492482267,0.40402,91168.0,91167.0,0.03698354]
[1764492482473,0.40402,91168.0,91167.0,0.05974354]
[1764492484374,0.19402,91168.0,91167.0,0.05974354]
[1764492484775,0.05077,91180.0,91179.0,0.0563557]
[1764492484976,0.46077,91180.0,91179.0,0.0563557]
[1764492485176,0.46077,91180.0,91179.0,0.0109657]
[1764492485471,0.46077,91180.0,91167.0,0.01435354]
[1764492485472,0.04402,91168.0,91167.0,0.05974354]
[1764492486076,0.04402,91168.0,91167.0,0.07071074]
[1764492491785,0.14216645,91190.0,91183.0,0.0563551]
[1764492492088,0.16022778,91184.0,91183.0,0.0063551]
[1764492492295,0.05753,91180.0,91179.0,0.04539]
[1764492492480,0.42753,91180.0,91179.0,0.04539]
[1764492492876,0.05753,91180.0,91179.0,0.0563557]
[1764492493089,0.04402,91180.0,91179.0,0.0563557]
[1764492494191,0.02226445,91186.0,91185.0,0.055935]
[1764492494384,0.02226445,91186.0,91185.0,0.465935]
[1764492495289,0.04469445,91186.0,91185.0,0.465935]
[1764492496893,0.04453,91195.0,91194.0,0.0559339]
[1764492498185,0.05758,91195.0,91194.0,0.0559339]
[1764492499096,0.05858,91195.0,91194.0,0.0559339]
[1764492500289,0.0231,91195.0,91194.0,0.0559339]
[1764492500489,0.001,91195.0,91194.0,0.0559339]
[1764492500787,0.04469445,91204.0,91203.0,0.0559329]
[1764492501085,0.25469445,91204.0,91203.0,0.0559329]
[1764492501894,0.25569445,91204.0,91203.0,0.0559329]
[1764492508894,0.04569445,91204.0,91203.0,0.0559329]
[1764492510904,0.04469445,91204.0,91203.0,0.0559329]
[1764492519023,0.04469445,91204.0,91203.0,0.4359329]
[1764492520515,0.04469445,91204.0,91203.0,0.51434943]
[1764492520712,0.04469445,91204.0,91203.0,0.4359329]
[1764492525819,0.04469445,91204.0,91203.0,0.2459329]
[1764492527013,0.04469445,91204.0,91203.0,0.4759329]
[1764492528608,0.00016445,91204.0,91203.0,0.4759329]
[1764492531218,0.04470445,91204.0,91203.0,0.4759329]
[1764492531623,0.05802445,91204.0,91203.0,0.0559329]
[1764492533621,0.04470445,91204.0,91203.0,0.0559329]
[1764492542014,0.04470445,91204.0,91203.0,0.3259329]
[1764492542722,0.05786,91228.0,91227.0,0.05395]
[1764492542927,0.04454,91228.0,91227.0,0.05395]
[1764492543331,0.04454,91228.0,91227.0,0.03279]
[1764492543916,0.04454,91228.0,91227.0,0.05495]
[1764492544118,0.04454,91228.0,91227.0,0.05595]
[1764492545430,0.04454,91228.0,91227.0,0.05495]
[1764492545625,0.04454,91228.0,91227.0,0.05395]
[1764492545826,0.04454,91228.0,91227.0,0.05495]
[1764492546223,0.04454,91228.0,91227.0,0.05395]
[1764492550629,0.04454,91236.0,91235.0,0.010959]
[1764492550931,0.40454,91236.0,91235.0,0.053949]
[1764492551722,0.04454,91236.0,91235.0,0.053949]
[1764492551924,0.21454,91236.0,91235.0,0.053949]
[1764492552123,0.14191154,91250.0,91245.0,0.0539478]
[1764492552124,0.04481399,91246.0,91245.0,0.0539478]
[1764492552341,0.44481399,91246.0,91245.0,0.0109578]
[1764492552627,0.04481399,91246.0,91245.0,0.0539478]
[1764492554426,0.00027399,91246.0,91245.0,0.0539478]
[1764492554732,0.01332,91255.0,91254.0,0.0547267]
[1764492554733,0.04325,91255.0,91254.0,0.0547267]
[1764492554916,0.39325,91255.0,91254.0,0.0547267]
[1764492555122,0.40606,91255.0,91254.0,0.0547267]
[1764492555326,0.05606,91255.0,91254.0,0.0547267]
[1764492555526,0.48606,91255.0,91254.0,0.0547267]
[1764492556230,0.11606,91255.0,91254.0,0.0547267]
[1764492556618,0.29606,91255.0,91254.0,0.0547267]
[1764492559319,0.04325,91246.0,91245.0,0.05813691]
[1764492559526,0.04325,91246.0,91245.0,0.02532471]
[1764492559724,0.04325,91246.0,91245.0,0.04754471]
[1764492560026,0.04325,91246.0,91245.0,0.06909471]
[1764492563136,0.04325,91246.0,91245.0,0.04754471]
[1764492563336,0.04325,91246.0,91245.0,0.06909471]
[1764492569638,0.40325,91246.0,91245.0,0.06909471]
[1764492570339,0.40325,91246.0,91245.0,0.01436691]
[1764492570640,0.40325,91246.0,91240.0,0.0109583]
[1764492570641,0.04474,91241.0,91240.0,0.0109583]
[1764492571135,0.47474,91241.0,91240.0,0.0319583]
[1764492571344,0.47474,91241.0,91240.0,0.0546083]
[1764492573129,0.47474,91241.0,91240.0,0.06956781]
[1764492573634,0.47474,91241.0,91240.0,0.01495951]
[1764492573840,0.04474,91239.0,91238.0,0.0109586]
[1764492574028,0.39474,91239.0,91238.0,0.0109586]
[1764492574425,0.39474,91239.0,91238.0,0.02558178]
[1764492574634,0.39474,91239.0,91238.0,0.0109586]
[1764492575141,0.39474,91239.0,91238.0,0.0319586]
[1764492576141,0.39474,91239.0,91238.0,0.0546086]
[1764492577638,0.39474,91239.0,91238.0,0.06924148]
[1764492578628,0.39474,91239.0,91238.0,0.01463288]
[1764492578831,0.04474,91237.0,91236.0,0.01112325]
[1764492579031,0.47474,91237.0,91236.0,0.01112325]
[1764492579247,0.47474,91237.0,91236.0,0.03212325]
[1764492579636,0.47474,91237.0,91236.0,0.05477325]
[1764492580241,0.47474,91237.0,91236.0,0.06906539]
[1764492580847,0.04474,91237.0,91236.0,0.06906539]
[1764492585551,0.45474,91237.0,91236.0,0.01445659]
[1764492588850,0.45474,91237.0,91236.0,0.03665659]
[1764492589447,0.45474,91237.0,91236.0,0.05872659]
[1764492591156,0.04474,91237.0,91236.0,0.05872659]
[1764492592054,0.45474,91237.0,91236.0,0.05872659]
[1764492594254,0.45474,91237.0,91236.0,0.13731827]
[1764492594255,0.19474,91237.0,91236.0,0.13731827]
[1764492595154,0.04474,91237.0,91236.0,0.13731827]
[1764492596460,0.04474,91237.0,91236.0,0.05872659]
[1764492600655,0.0129,91245.0,91236.0,0.05872659]
[1764492600656,0.04566,91245.0,91244.0,0.0552279]
[1764492601158,0.05836,91245.0,91244.0,0.0552279]
[1764492601346,0.05836,91245.0,91244.0,0.0109579]
[1764492601542,0.04566,91242.0,91241.0,0.08945948]
[1764492601765,0.04566,91242.0,91241.0,0.13372948]
[1764492601949,0.04566,91242.0,91241.0,0.0552283]
[1764492605652,0.05847,91250.0,91249.0,0.0552273]
[1764492605856,0.15847,91250.0,91249.0,0.0552273]
[1764492606257,0.0127,91260.0,91249.0,0.0552273]
[1764492606459,0.0127,91260.0,91259.0,0.0552261]
[1764492606460,0.05836,91260.0,91259.0,0.0552261]
[1764492607457,0.04566,91260.0,91259.0,0.0552261]
[1764492607851,0.04666,91260.0,91259.0,0.0552261]
[1764492609762,0.4237,91260.0,91256.0,0.0331565]
[1764492610064,0.04566,91257.0,91256.0,0.0331565]
[1764492610452,0.04566,91257.0,91256.0,0.0552265]
[1764492610959,0.04566,91257.0,91256.0,0.0331565]